fUSD/lending_fUSD_20240428
["ID","MTS","AMOUNT","RATE_DAILY","PERIOD"]
[19832,1714329107123,-738.19,0.00012328,2]
[19833,1714329107132,-500.0,0.00012328,2]
[19834,1714329107141,-1052.48,0.00012328,2]
[19835,1714329107150,-859.1,0.00012328,2]
[19836,1714329107160,-500.0,0.00012328,2]
[19837,1714329107169,-1538.2,0.00012328,2]
[19838,1714329107178,-500.0,0.00012328,2]
[19839,1714329107187,-1607.959395,0.00012328,2]
[19840,1714329107197,-726.63,0.00012328,2]
[19841,1714329107206,-500.0,0.00012328,2]
[19843,1714329107225,-500.0,0.00012328,2]
[19845,1714329107244,-1607.959395,0.00012328,2]
[19847,1714329107262,-1018.03,0.00012328,2]
[19849,1714329107281,-6205.7,0.00012328,2]
[19851,1714329107300,-500.0,0.00012328,2]
[19853,1714329107319,-10958.77,0.00012328,2]
[19855,1714329107338,-1395.16,0.00012328,2]
[19857,1714329107356,-1585.31,0.00012328,2]
[19859,1714329107376,-500.0,0.00012328,2]
[19861,1714329107395,-535.01,0.00012328,2]
[19863,1714329107414,-1402.03,0.00012328,2]
[19865,1714329107432,-500.0,0.00012328,2]
[19867,1714329107450,-500.0,0.00012328,2]
[19869,1714329107469,-1669.71,0.00012328,2]
[19871,1714329107487,-2082.9,0.00012328,2]
[19873,1714329107505,-786.39,0.00012328,2]
[19875,1714329107523,-500.0,0.00012328,2]
[19877,1714329107541,-4338.45,0.00012328,2]
[19879,1714329107560,-500.0,0.00012328,2]
[19881,1714329107660,-1242.44,0.00012328,2]
[19883,1714329107681,-598.29,0.00012328,2]
[19885,1714329107700,-853.69,0.00012328,2]
[19887,1714329107719,-744.76,0.00012328,2]
[19888,1714329107727,-1396.47,0.00012328,2]
[19889,1714329107736,-2315.27,0.00012328,2]
[19890,1714329107745,-500.0,0.00012328,2]
[19891,1714329107758,-5437.95,0.00012328,2]
[19893,1714329107776,-1002.92,0.00012328,2]
[19895,1714329107794,-599.71,0.00012328,2]
[19897,1714329107814,-1605.35,0.00012328,2]
[19899,1714329107832,-970.64,0.00012328,2]
[19901,1714329107851,-1552.38,0.00012328,2]
[19903,1714329107869,-529.05,0.00012328,2]
[19904,1714329107878,-2313.26,0.00012328,2]
[19905,1714329107887,-500.0,0.00012328,2]
[19906,1714329107896,-2307.17,0.00012328,2]
[19907,1714329107905,-752.06,0.00012328,2]
[19909,1714329107923,-500.0,0.00012328,2]
[19911,1714329107941,-854.43,0.00012328,2]
[19913,1714329107959,-1819.29,0.00012328,2]
[19915,1714329107977,-500.0,0.00012328,2]
[19917,1714329107995,-500.0,0.00012328,2]
[19919,1714329108012,-1034.68,0.00012328,2]
[19921,1714329108030,-500.0,0.00012328,2]
[19923,1714329108048,-930.49,0.00012328,2]
[19925,1714329108066,-660.98,0.00012328,2]
[19927,1714329108083,-1380.46,0.00012328,2]
[19928,1714329108092,-753.21,0.00012328,2]
[19929,1714329108102,-500.0,0.00012328,2]
[19931,1714329108120,-500.0,0.00012328,2]
[19933,1714329108138,-1293.28,0.00012328,2]
[19934,1714329108147,-633.32,0.00012328,2]
[19935,1714329108156,-546.48,0.00012328,2]
[19936,1714329108165,-900.78,0.00012328,2]
[19937,1714329108174,-500.0,0.00012328,2]
[19938,1714329108183,-1510.06,0.00012328,2]
[19939,1714329108191,-3266.32,0.00012328,2]
[19940,1714329108201,-2166.18,0.00012328,2]
[19941,1714329108210,-1985.87,0.00012328,2]
[19942,1714329108219,-1021.32,0.00012328,2]
[19943,1714329108228,-992.28,0.00012328,2]
[19945,1714329108245,-544.19,0.00012328,2]
[19947,1714329108263,-1290.26,0.00012328,2]
[19948,1714329108272,-570.7,0.00012328,2]
[19949,1714329108281,-3414.29,0.00012328,2]
[19950,1714329108290,-2248.37,0.00012328,2]
[19951,1714329108299,-500.0,0.00012328,2]
[19952,1714329108308,-554.01,0.00012328,2]
[19953,1714329108316,-3322.95,0.00012328,2]
[19955,1714329108334,-500.0,0.00012328,2]
[19957,1714329108352,-500.0,0.00012328,2]
[19958,1714329108361,-1867.81,0.00012328,2]
[19959,1714329108371,-500.0,0.00012328,2]
[19960,1714329108379,-2488.18,0.00012328,2]
[19961,1714329108389,-515.89,0.00012328,2]
[19963,1714329108407,-502.97753507,0.00012328,2]
[19965,1714329108427,-500.0,0.00012328,2]
[19966,1714329108435,-500.0,0.00012328,2]
[19967,1714329108444,-610.99,0.00012328,2]
[19969,1714329108461,-556.06933036,0.00012328,2]
[19971,1714329108480,-1635.67,0.00012328,2]
[19973,1714329108499,-919.02,0.00012328,2]
[19975,1714329108519,-500.0,0.00012328,2]
[19977,1714329108539,-3255.5,0.00012328,2]
[19979,1714329108558,-500.0,0.00012328,2]
[19981,1714329108576,-500.0,0.00012328,2]
[19983,1714329108595,-1318.58,0.00012328,2]
[19985,1714329108614,-500.0,0.00012328,2]
[19986,1714329108624,-549.5,0.00012328,2]
[19987,1714329108632,-380.40150058,0.00012328,2]
[19988,1714329108642,-648.58,0.00012328,2]
[19989,1714329108651,-6907.46,0.00012328,2]
[19990,1714329108660,-5225.05,0.00012328,2]
[19991,1714329108670,-500.0,0.00012328,2]
[19993,1714329108693,-513.94,0.00012328,2]
[19995,1714329108711,-3651.69,0.00012328,2]
[19997,1714329108731,-6369.57,0.00012328,2]
[19999,1714329108755,-943.47,0.00012328,2]
[20001,1714329108777,-517.3,0.00012328,2]
[20003,1714329108797,-1866.42,0.00012328,2]
[20004,1714329108806,-3099.3,0.00012328,2]
[20005,1714329108816,-500.0,0.00012328,2]
[20006,1714329108827,-2707.94,0.00012328,2]
[20007,1714329108836,-1460.67,0.00012328,2]
[20008,1714329108846,-821.68,0.00012328,2]
[20009,1714329108855,-1115.92,0.00012328,2]
[20010,1714329108864,-2477.27,0.00012328,2]
[20011,1714329108874,-529.06,0.00012328,2]
[20012,1714329108883,-540.62,0.00012328,2]
[20013,1714329108893,-500.0,0.00012328,2]
[20014,1714329108904,-500.0,0.00012328,2]
[20015,1714329108915,-677.53,0.00012328,2]
[20016,1714329108925,-1835.72,0.00012328,2]
[20017,1714329108934,-658.86,0.00012328,2]
[20018,1714329108943,-540.14,0.00012328,2]
[20019,1714329108953,-500.0,0.00012328,2]
[20020,1714329108962,-560.3,0.00012328,2]
[20021,1714329108972,-1100.33,0.00012328,2]
[20022,1714329108982,-1000.0,0.00012329,2]
[20023,1714329108992,-728.0,0.00012329,2]
[20024,1714329109002,-2256.62722941,0.00012365,2]
[20025,1714329109011,-23289.40920206,0.00012365,2]
[20027,1714329109029,-957.04,0.00012545,2]
[20028,1714329109038,-665.06,0.00012602,2]
[20029,1714329109047,-797.43,0.00012602,2]
[20030,1714329109057,-500.0,0.00012602,2]
[20031,1714329109068,-500.0,0.00012602,2]
[20032,1714329109077,-500.0,0.00012602,2]
[20033,1714329109088,-500.0,0.00012602,2]
[20034,1714329109098,-500.0,0.00012602,2]
[20035,1714329109108,-510.3291896,0.00012602,2]
[20036,1714329109119,-500.0,0.00012602,2]
[20037,1714329109128,-500.0,0.00012602,2]
[20039,1714329109147,-500.0,0.00012602,2]
[20041,1714329109166,-500.0,0.00012602,2]
[20043,1714329109187,-611.53,0.00012602,2]
[20045,1714329109208,-500.0,0.00012602,2]
[20047,1714329109231,-500.0,0.00012602,2]
[20049,1714329109252,-896.51,0.00012602,2]
[20050,1714329109262,-500.0,0.00012602,2]
[20051,1714329109271,-500.0,0.00012602,2]
[20052,1714329109281,-513.58,0.00012602,2]
[20053,1714329109290,-500.0,0.00012602,2]
[20054,1714329109299,-500.0,0.00012602,2]
[20055,1714329109308,-500.0,0.00012602,2]
[20056,1714329109316,-522.25,0.00012602,2]
[20057,1714329109325,-500.0,0.00012602,2]
[20058,1714329109334,-560.42,0.00012602,2]
[20059,1714329109343,-626.23,0.00012602,2]
[20061,1714329109363,-500.0,0.00012602,2]
[20062,1714329109372,-500.0,0.00012602,2]
[20063,1714329109381,-1056.37,0.00012602,2]
[20064,1714329109390,-500.0,0.00012602,2]
[20065,1714329109399,-501.7,0.00012602,2]
[20066,1714329109409,-775.76,0.00012602,2]
[20067,1714329109419,-676.09,0.00012602,2]
[20068,1714329109428,-500.0,0.00012602,2]
[20069,1714329109438,-500.0,0.00012602,2]
[20070,1714329109447,-500.0,0.00012602,2]
[20071,1714329109456,-500.0,0.00012602,2]
[20072,1714329109465,-540.43,0.00012602,2]
[20073,1714329109476,-551.61,0.00012602,2]
[20074,1714329109486,-500.0,0.00012602,2]
[20075,1714329109495,-500.0,0.00012602,2]
[20076,1714329109504,-500.0,0.00012602,2]
[20077,1714329109513,-500.0,0.00012602,2]
[20078,1714329109522,-500.0,0.00012602,2]
[20079,1714329109531,-500.0,0.00012602,2]
[20080,1714329109540,-549.6,0.00012602,2]
[20081,1714329109551,-500.0,0.00012602,2]
[20083,1714329109570,-500.0,0.00012602,2]
[20084,1714329109582,-500.0,0.00012602,2]
[20085,1714329109592,-500.0,0.00012602,2]
[20087,1714329109613,-500.0,0.00012602,2]
[20089,1714329109634,-500.0,0.00012602,2]
[20091,1714329109654,-500.0,0.00012602,2]
[20093,1714329109676,-725.96,0.00012602,2]
[20095,1714329109696,-500.0,0.00012602,2]
[20097,1714329109714,-500.0,0.00012602,2]
[20098,1714329109724,-1019.23,0.00012602,2]
[20099,1714329109733,-500.0,0.00012602,2]
[20100,1714329109743,-500.0,0.00012602,2]
[20101,1714329109755,-500.0,0.00012602,2]
[20102,1714329109764,-628.03,0.00012602,2]
[20103,1714329109774,-500.0,0.00012602,2]
[20104,1714329109784,-500.0,0.00012602,2]
[20105,1714329109794,-720.76,0.00012602,2]
[20107,1714329109814,-500.0,0.00012602,2]
[20108,1714329109823,-500.0,0.00012602,2]
[20109,1714329109833,-707.71,0.00012602,2]
[20110,1714329109842,-500.0,0.00012602,2]
[20111,1714329109852,-832.16,0.00012602,2]
[20112,1714329109862,-605.1,0.00012602,2]
[20113,1714329109871,-500.0,0.00012602,2]
[20114,1714329109881,-500.0,0.00012602,2]
[20115,1714329109890,-585.93,0.00012602,2]
[20116,1714329109901,-500.0,0.00012602,2]
[20117,1714329109912,-500.0,0.00012602,2]
[20118,1714329109921,-500.0,0.00012602,2]
[20119,1714329109930,-1025.86,0.00012602,2]
[20120,1714329109940,-534.27,0.00012602,2]
[20121,1714329109949,-773.75,0.00012602,2]
[20122,1714329109958,-500.0,0.00012602,2]
[20123,1714329109967,-1055.21,0.00012602,2]
[20125,1714329109985,-500.0,0.00012602,2]
[20127,1714329110004,-500.0,0.00012602,2]
[20128,1714329110013,-500.0,0.00012602,2]
[20129,1714329110023,-532.31,0.00012602,2]
[20131,1714329110042,-500.0,0.00012602,2]
[20132,1714329110052,-806.46,0.00012602,2]
[20133,1714329110061,-500.0,0.00012602,2]
[20134,1714329110071,-500.0,0.00012602,2]
[20135,1714329110080,-500.0,0.00012602,2]
[20136,1714329110090,-500.0,0.00012602,2]
[20137,1714329110100,-1304.76,0.00012602,2]
[20138,1714329110109,-500.0,0.00012602,2]
[20139,1714329110119,-662.77,0.00012602,2]
[20140,1714329110129,-500.0,0.00012602,2]
[20141,1714329110138,-1390.68,0.00012602,2]
[20142,1714329110148,-1111.61,0.00012602,2]
[20143,1714329110158,-500.0,0.00012602,2]
[20144,1714329110168,-565.83,0.00012602,2]
[20145,1714329110178,-500.0,0.00012602,2]
[20147,1714329110197,-616.2,0.00012602,2]
[20148,1714329110207,-508.26,0.00012602,2]
[20149,1714329110220,-500.0,0.00012602,2]
[20151,1714329110240,-500.0,0.00012602,2]
[20153,1714329110260,-500.0,0.00012602,2]
[20154,1714329110269,-500.0,0.00012602,2]
[20155,1714329110279,-500.0,0.00012602,2]
[20157,1714329110298,-1661.14,0.00012602,2]
[20158,1714329110308,-500.0,0.00012602,2]
[20159,1714329110317,-601.02,0.00012602,2]
[20160,1714329110327,-652.81,0.00012602,2]
[20161,1714329110337,-500.0,0.00012602,2]
[20162,1714329110347,-1122.8,0.00012602,2]
[20163,1714329110356,-500.0,0.00012602,2]
[20164,1714329110366,-755.72,0.00012602,2]
[20165,1714329110377,-1126.64,0.00012602,2]
[20166,1714329110387,-531.93,0.00012602,2]
[20167,1714329110397,-549.22,0.00012602,2]
[20168,1714329110406,-500.0,0.00012602,2]
[20169,1714329110416,-500.0,0.00012602,2]
[20170,1714329110426,-150.0,0.00012602,2]
[20171,1714329110436,-705.96,0.00012602,2]
[20173,1714329110455,-1788.12,0.00012602,2]
[20174,1714329110465,-800.21,0.00012602,2]
[20175,1714329110475,-755.04,0.00012602,2]
[20176,1714329110485,-500.0,0.00012602,2]
[20177,1714329110495,-1031.54,0.00012602,2]
[20178,1714329110504,-500.0,0.00012602,2]
[20179,1714329110514,-569.87,0.00012602,2]
[20180,1714329110524,-500.0,0.00012602,2]
[20181,1714329110533,-161.80690505,0.00012602,2]
[20182,1714329110543,-1008.22,0.00012602,2]
[20183,1714329110553,-718.07,0.00012602,2]
[20185,1714329110573,-500.0,0.00012602,2]
[20186,1714329110583,-1114.07,0.00012602,2]
[20187,1714329110592,-500.0,0.00012602,2]
[20189,1714329110612,-496.06372074,0.00012602,2]
[20191,1714329110631,-1722.02,0.00012602,2]
[20192,1714329110641,-500.0,0.00012602,2]
[20193,1714329110651,-500.0,0.00012602,2]
[20194,1714329110660,-500.0,0.00012602,2]
[20195,1714329110671,-645.11,0.00012602,2]
[20196,1714329110685,-500.0,0.00012602,2]
[20197,1714329110695,-768.98,0.00012602,2]
[20198,1714329110704,-623.27,0.00012602,2]
[20199,1714329110714,-648.5,0.00012602,2]
[20200,1714329110726,-717.43,0.00012602,2]
[20201,1714329110735,-673.41,0.00012602,2]
[20202,1714329110745,-1373.18,0.00012602,2]
[20203,1714329110756,-518.35,0.00012602,2]
[20204,1714329110765,-500.0,0.00012602,2]
[20205,1714329110776,-1449.07,0.00012602,2]
[20206,1714329110786,-500.0,0.00012602,2]
[20207,1714329110796,-500.0,0.00012602,2]
[20209,1714329110815,-794.96,0.00012602,2]
[20211,1714329110835,-734.98,0.00012602,2]
[20213,1714329110854,-500.0,0.00012602,2]
[20215,1714329110874,-552.84,0.00012602,2]
[20217,1714329110893,-500.0,0.00012602,2]
[20219,1714329110913,-1048.48,0.00012602,2]
[20221,1714329110932,-683.7,0.00012602,2]
[20223,1714329110953,-572.97,0.00012602,2]
[20225,1714329110972,-500.0,0.00012602,2]
[20227,1714329110992,-743.85,0.00012602,2]
[20229,1714329111012,-555.02,0.00012602,2]
[20231,1714329111031,-779.67,0.00012602,2]
[20233,1714329111051,-501.69,0.00012602,2]
[20235,1714329111070,-508.41,0.00012602,2]
[20237,1714329111090,-500.0,0.00012602,2]
[20239,1714329111109,-500.0,0.00012602,2]
[20241,1714329111129,-778.4,0.00012602,2]
[20243,1714329111148,-500.0,0.00012602,2]
[20245,1714329111167,-862.57,0.00012602,2]
[20247,1714329111187,-519.57,0.00012602,2]
[20249,1714329111206,-500.0,0.00012602,2]
[20251,1714329111226,-500.0,0.00012602,2]
[20253,1714329111245,-650.14,0.00012602,2]
[20255,1714329111265,-617.57,0.00012602,2]
[20257,1714329111284,-1082.91,0.00012602,2]
[20259,1714329111303,-764.8,0.00012602,2]
[20260,1714329111313,-784.22,0.00012602,2]
[20261,1714329111323,-886.38,0.00012602,2]
[20262,1714329111332,-500.0,0.00012602,2]
[20263,1714329111341,-500.0,0.00012602,2]
[20264,1714329111351,-500.0,0.00012602,2]
[20265,1714329111360,-500.0,0.00012602,2]
[20267,1714329111380,-516.12,0.00012602,2]
[20269,1714329111399,-500.0,0.00012602,2]
[20271,1714329111420,-500.0,0.00012602,2]
[20272,1714329111433,-528.05,0.00012602,2]
[20273,1714329111443,-500.0,0.00012602,2]
[20274,1714329111453,-1205.16,0.00012602,2]
[20275,1714329111463,-500.0,0.00012602,2]
[20276,1714329111473,-704.8,0.00012602,2]
[20277,1714329111482,-658.26,0.00012602,2]
[20278,1714329111492,-500.0,0.00012602,2]
[20279,1714329111502,-500.0,0.00012602,2]
[20280,1714329111512,-502.44656935,0.00012602,2]
[20281,1714329111522,-1863.44,0.00012602,2]
[20282,1714329111532,-688.67,0.00012602,2]
[20283,1714329111542,-500.0,0.00012602,2]
[20285,1714329111562,-812.83,0.00012602,2]
[20286,1714329111572,-500.0,0.00012602,2]
[20287,1714329111582,-500.0,0.00012602,2]
[20288,1714329111592,-500.0,0.00012602,2]
[20289,1714329111602,-562.73,0.00012602,2]
[20290,1714329111612,-500.0,0.00012602,2]
[20291,1714329111622,-899.04,0.00012602,2]
[20292,1714329111632,-500.0,0.00012602,2]
[20293,1714329111643,-500.0,0.00012602,2]
[20294,1714329111653,-500.0,0.00012602,2]
[20295,1714329111663,-1190.14,0.00012602,2]
[20297,1714329111688,-547.4614891,0.00012602,2]
[20299,1714329111709,-500.0,0.00012602,2]
[20301,1714329111731,-876.81,0.00012602,2]
[20303,1714329111967,-494.05040762,0.00012602,2]
[20305,1714329111987,-500.0,0.00012602,2]
[20307,1714329112008,-765.33,0.00012602,2]
[20309,1714329112027,-867.7,0.00012602,2]
[20311,1714329112046,-500.0,0.00012602,2]
[20313,1714329112065,-500.0,0.00012602,2]
[20315,1714329112085,-1019.77,0.00012602,2]
[20317,1714329112104,-605.8,0.00012602,2]
[20319,1714329112124,-500.0,0.00012602,2]
[20321,1714329112143,-500.0,0.00012602,2]
[20323,1714329112162,-517.79,0.00012602,2]
[20325,1714329112180,-500.0,0.00012602,2]
[20326,1714329112189,-500.0,0.00012602,2]
[20327,1714329112199,-517.51,0.00012602,2]
[20328,1714329112208,-1894.72,0.00012602,2]
[20329,1714329112217,-500.0,0.00012602,2]
[20330,1714329112226,-500.0,0.00012602,2]
[20331,1714329112235,-500.0,0.00012602,2]
[20332,1714329112244,-930.04,0.00012602,2]
[20333,1714329112254,-500.0,0.00012602,2]
[20334,1714329112263,-830.99,0.00012602,2]
[20335,1714329112272,-1200.14,0.00012602,2]
[20337,1714329112291,-500.0,0.00012602,2]
[20339,1714329112311,-500.0,0.00012602,2]
[20341,1714329112330,-500.0,0.00012602,2]
[20343,1714329112348,-568.27,0.00012602,2]
[20344,1714329112357,-500.0,0.00012602,2]
[20345,1714329112366,-500.0,0.00012602,2]
[20347,1714329112385,-606.395362,0.00012602,2]
[20349,1714329112403,-500.0,0.00012602,2]
[20351,1714329112422,-500.0,0.00012602,2]
[20352,1714329112432,-836.74,0.00012602,2]
[20353,1714329112441,-500.0,0.00012602,2]
[20355,1714329112459,-669.02,0.00012602,2]
[20357,1714329112477,-710.13,0.00012602,2]
[20359,1714329112496,-500.0,0.00012602,2]
[20361,1714329112514,-500.0,0.00012602,2]
[20362,1714329112524,-1298.79,0.00012602,2]
[20363,1714329112534,-777.85,0.00012602,2]
[20364,1714329112544,-1163.95,0.00012602,2]
[20365,1714329112553,-1171.06,0.00012602,2]
[20367,1714329112572,-500.0,0.00012602,2]
[20368,1714329112581,-690.62,0.00012602,2]
[20369,1714329112591,-782.58,0.00012602,2]
[20370,1714329112600,-681.46,0.00012602,2]
[20371,1714329112609,-500.0,0.00012602,2]
[20373,1714329112629,-741.3,0.00012602,2]
[20375,1714329112647,-1031.54,0.00012602,2]
[20377,1714329112667,-523.34,0.00012602,2]
[20379,1714329112689,-559.63,0.00012602,2]
[20381,1714329112709,-500.0,0.00012602,2]
[20383,1714329112732,-500.0,0.00012602,2]
[20385,1714329112751,-518.83,0.00012602,2]
[20387,1714329112771,-500.0,0.00012602,2]
[20389,1714329112791,-500.0,0.00012602,2]
[20391,1714329112810,-500.0,0.00012602,2]
[20392,1714329112820,-526.92940852,0.00012602,2]
[20393,1714329112829,-500.0,0.00012602,2]
[20394,1714329112839,-623.62,0.00012602,2]
[20395,1714329112849,-1027.6,0.00012602,2]
[20396,1714329112858,-500.0,0.00012602,2]
[20397,1714329112867,-500.0,0.00012602,2]
[20398,1714329112878,-500.0,0.00012602,2]
[20399,1714329112887,-500.0,0.00012602,2]
[20400,1714329112896,-500.0,0.00012602,2]
[20401,1714329112906,-1205.63,0.00012602,2]
[20403,1714329112924,-500.0,0.00012602,2]
[20405,1714329112943,-848.59,0.00012602,2]
[20407,1714329112962,-500.0,0.00012602,2]
[20409,1714329112981,-500.0,0.00012602,2]
[20411,1714329113000,-500.0,0.00012602,2]
[20413,1714329113021,-500.0,0.00012602,2]
[20415,1714329113040,-500.0,0.00012602,2]
[20417,1714329113059,-724.03,0.00012602,2]
[20419,1714329113077,-500.0,0.00012602,2]
[20421,1714329113097,-842.42,0.00012602,2]
[20423,1714329113116,-887.92,0.00012602,2]
[20425,1714329113136,-9567.9,0.00012602,2]
[20427,1714329113156,-504.13133275,0.00012602,2]
[20429,1714329113176,-500.0,0.00012602,2]
[20431,1714329113195,-701.3,0.00012602,2]
[20433,1714329113214,-1014.05,0.00012602,2]
[20435,1714329113233,-500.0,0.00012602,2]
[20436,1714329113242,-829.31,0.00012602,2]
[20437,1714329113251,-865.55,0.00012602,2]
[20438,1714329113260,-500.0,0.00012602,2]
[20439,1714329113270,-500.0,0.00012602,2]
[20440,1714329113279,-500.0,0.00012602,2]
[20441,1714329113288,-602.41,0.00012602,2]
[20442,1714329113298,-569.34479201,0.00012602,2]
[20443,1714329113307,-500.0,0.00012602,2]
[20444,1714329113317,-500.0,0.00012602,2]
[20445,1714329113326,-558.66,0.00012602,2]
[20447,1714329113345,-1093.84,0.00012602,2]
[20449,1714329113364,-500.0,0.00012602,2]
[20451,1714329113384,-500.0,0.00012602,2]
[20453,1714329113403,-500.0,0.00012602,2]
[20455,1714329113422,-769.55,0.00012602,2]
[20457,1714329113441,-500.0,0.00012602,2]
[20459,1714329113459,-545.7,0.00012602,2]
[20461,1714329113477,-500.0,0.00012602,2]
[20463,1714329113496,-2129.61,0.00012602,2]
[20464,1714329113505,-1056.93,0.00012602,2]
[20465,1714329113514,-500.0,0.00012602,2]
[20467,1714329113532,-500.0,0.00012602,2]
[20469,1714329113550,-500.0,0.00012602,2]
[20471,1714329113569,-737.96,0.00012602,2]
[20472,1714329113578,-500.0,0.00012602,2]
[20473,1714329113587,-500.0,0.00012602,2]
[20474,1714329113596,-1191.82,0.00012602,2]
[20475,1714329113606,-500.0,0.00012602,2]
[20476,1714329113615,-613.02,0.00012602,2]
[20477,1714329113625,-500.0,0.00012602,2]
[20478,1714329113634,-500.0,0.00012602,2]
[20479,1714329113643,-793.83,0.00012602,2]
[20480,1714329113653,-3214.28,0.00012602,2]
[20481,1714329113662,-774.89,0.00012602,2]
[20482,1714329113671,-533.47,0.00012602,2]
[20483,1714329113683,-628.51,0.00012602,2]
[20484,1714329113692,-804.06,0.00012602,2]
[20485,1714329113701,-1032.47,0.00012602,2]
[20486,1714329113711,-500.0,0.00012602,2]
[20487,1714329113720,-484.75,0.00012602,2]
[20488,1714329113730,-676.7,0.00012602,2]
[20489,1714329113739,-500.0,0.00012602,2]
[20491,1714329113760,-500.0,0.00012602,2]
[20493,1714329113779,-559.35,0.00012602,2]
[20495,1714329113797,-500.0,0.00012602,2]
[20497,1714329113815,-1650.98,0.00012602,2]
[20499,1714329113833,-2067.73,0.00012602,2]
[20501,1714329113852,-849.7,0.00012602,2]
[20503,1714329113871,-500.0,0.00012602,2]
[20505,1714329113890,-500.0,0.00012602,2]
[20507,1714329113908,-690.12,0.00012602,2]
[20509,1714329113927,-932.3,0.00012602,2]
[20511,1714329113945,-1291.62,0.00012602,2]
[20513,1714329113964,-1325.99,0.00012602,2]
[20515,1714329113982,-500.0,0.00012602,2]
[20517,1714329114000,-1165.14,0.00012602,2]
[20519,1714329114020,-500.0,0.00012602,2]
[20521,1714329114038,-526.88,0.00012602,2]
[20523,1714329114056,-1935.97,0.00012602,2]
[20525,1714329114074,-500.0,0.00012602,2]
[20527,1714329114093,-2097.93,0.00012602,2]
[20529,1714329114114,-930.38,0.00012602,2]
[20531,1714329114134,-500.0,0.00012602,2]
[20533,1714329114153,-2955.84,0.00012602,2]
[20535,1714329114171,-500.0,0.00012602,2]
[20537,1714329114190,-2200.29,0.00012602,2]
[20539,1714329114208,-1126.74,0.00012602,2]
[20541,1714329114306,-500.0,0.00012602,2]
[20543,1714329114326,-500.0,0.00012602,2]